[Event "Croatian 1B League 2022"]
[Site "Porec"]
[Date "2022.10.01"]
[Round "8.3"]
[White "Golubovic, Boris"]
[Black "Makaj, Marko"]
[Result "1/2-1/2"]
[ECO "B06"]
[WhiteElo "2360"]
[BlackElo "2387"]
[Annotator "TA"]
[PlyCount "34"]
[EventDate "2022.09.24"]
[EventType "team-tourn"]
[EventCountry "CRO"]
[SourceTitle "playchess.com"]
[Source "ChessBase"]
[SourceQuality "1"]
[TimeControl "40/5400+30:1800+30"]

{[%evp 9,21,25,51,20,59,29,69,71,80,79,66,60,68,61]} 1. e4 {[%emt 0:00:08]} g6 {[%emt 0:00:09]} 2. d4 {[%emt 0:00:34]} Bg7 {[%emt 0:00:06]} 3. Nc3 {[%emt 0:03:53]} d6 {[%emt 0:00:08]} 4. Be3 {[%emt 0:00:21]} a6 {[%emt 0:00:08]} 5. Nf3 {[%emt 0:00:41]} Nd7 {[%emt 0:01:41]} 6. Bd3 {[%emt 0:01:37] B06: Modern Defence.} e6 {[%emt 0:02:16]} 7. Qd2 {[%emt 0:01:36]} h6 {[%emt 0:00:07] Prevents Bg5.} 8. O-O {[%emt 0:01:17]} Ne7 {[%emt 0:00:07]} 9. a4 {[%emt 0:01:27]} b6 {[%emt 0:00:07]} 10. Rfe1 {[%emt 0:01:05] White is more active.} Bb7 {[%emt 0:00:10]} 11. Rad1 {[%emt 0:00:19] [#] White took control after the opening.  Weighted Error Value: White=0.11 (very precise) /Black=0.19 (very precise)} {Predecessor:} g5 $146 12. h3 Rg8 13. d5 e5 14. Ne2 Ng6 15. Ng3 Kf8 16. Nf5 Nf4 17. Kh2 Bc8 {0-1 (42) Mayaud,R (2202)-Mortazavi,A (2333) Chess.com INT 2021} 1/2-1/2

[Event "Croatian 1B League 2022"]
[Site "Porec"]
[Date "2022.10.01"]
[Round "8.4"]
[White "Majeric, Zoran"]
[Black "Zelenika, Srdjan"]
[Result "1/2-1/2"]
[ECO "B31"]
[WhiteElo "2247"]
[BlackElo "2207"]
[Annotator "TA"]
[PlyCount "20"]
[EventDate "2022.09.24"]
[EventType "team-tourn"]
[EventCountry "CRO"]
[SourceTitle "playchess.com"]
[Source "ChessBase"]
[SourceQuality "1"]
[TimeControl "40/5400+30:1800+30"]

{[%evp 17,20,-19,-7,-39,22]} 1. e4 {[%emt 0:00:02]} c5 {[%emt 0:00:06]} 2. Nf3 {[%emt 0:00:04]} Nc6 {[%emt 0:00:14]} 3. Bb5 {[%emt 0:00:06]} g6 {[%emt 0:00:16]} 4. O-O {[%emt 0:00:07]} Bg7 {[%emt 0:00:05]} 5. Re1 {[%emt 0:00:06]} Nf6 {[%emt 0:00:22]} 6. c3 {[%emt 0:00:16]} O-O {[%emt 0:00:33]} 7. d4 {[%emt 0:06:56]} cxd4 {[%emt 0:02:21]} 8. e5 {[%emt 0:06:04]} Nd5 {[%emt 0:01:11]} 9. cxd4 {[%emt 0:01:12]} d6 {[%emt 0:00:41]} 10. h3 {[%emt 0:00:50] [#] B31: Sicilian: 2...Nc6 3 Bb5 g6.} Bd7 $146 {[%emt 0:03:57] A rather calm draw.} (10... Qb6 $15 11. Qa4 Be6) ({Predecessor:} 10... dxe5 11. dxe5 Ndb4 12. Qe2 a6 13. Bxc6 Nxc6 14. Bf4 Nd4 15. Nxd4 Qxd4 16. Bg5 Re8 17. Nc3 Be6 {0-1 (61) Gijsen,W (2022)-Mastrovasilis,A (2540) Chania 2022}) 1/2-1/2

[Event "Croatian 1B League 2022"]
[Site "Porec"]
[Date "2022.10.01"]
[Round "8.5"]
[White "Klobucar, Dean"]
[Black "Vlahov, Davor"]
[Result "1/2-1/2"]
[ECO "B19"]
[WhiteElo "2196"]
[BlackElo "2196"]
[Annotator "TA"]
[PlyCount "51"]
[EventDate "2022.09.24"]
[EventType "team-tourn"]
[EventCountry "CRO"]
[SourceTitle "playchess.com"]
[Source "ChessBase"]
[SourceQuality "1"]
[TimeControl "40/5400+30:1800+30"]

{[%evp 23,24,18,26]} 1. e4 {[%emt 0:00:02]} c6 {[%emt 0:11:58]} 2. d4 {[%emt 0:00:07]} d5 {[%emt 0:00:09]} 3. Nc3 {[%emt 0:00:17][%cal Bb1c3,Bc3e4,Be4g3][%mdl 32]} dxe4 {[%emt 0:00:40]} 4. Nxe4 {[%emt 0:00:08]} Bf5 {[%emt 0:00:23]} 5. Ng3 {[%emt 0:00:05]} Bg6 {[%emt 0:00:05]} 6. h4 {[%emt 0:00:06]} h6 {[%emt 0:00:10]} 7. h5 {[%emt 0:00:05]} Bh7 {[%emt 0:00:04]} 8. Bd3 {[%emt 0:00:26]} Bxd3 {[%emt 0:00:21]} 9. Qxd3 {[%emt 0:00:05]} Nf6 {[%emt 0:00:08]} 10. Nf3 {[%emt 0:00:05]} Nbd7 {[%emt 0:00:15]} 11. Bf4 {[%emt 0:00:06]} Qa5+ {[%emt 0:00:07]} 12. Bd2 {[%emt 0:00:04]} Qc7 {[%emt 0:00:06] [#]} {Predecessor:} 13. O-O-O $146 {B19: Classical Caro-Kann: 4...Bf5 main line.} e6 14. Ne4 O-O-O 15. g3 Nc5 16. Nxc5 Bxc5 17. c4 Bd6 18. Bc3 Rhe8 19. Kb1 Kb8 20. Qe2 Ka8 21. Ne5 c5 22. dxc5 Bxc5 23. g4 Bd6 24. f3 a6 25. Rd3 Bxe5 26. Bxe5 {1-0 (40) Banikas,H (2598)-Skembris,S (2399) Thessaloniki 2022} 1/2-1/2

[Event "Croatian 1B League 2022"]
[Site "Porec"]
[Date "2022.10.01"]
[Round "8.6"]
[White "Tomerlin, Sinisa"]
[Black "Cubric, Andrija"]
[Result "0-1"]
[ECO "B22"]
[WhiteElo "2184"]
[BlackElo "1830"]
[Annotator "TA"]
[PlyCount "114"]
[EventDate "2022.09.24"]
[EventType "team-tourn"]
[EventCountry "CRO"]
[SourceTitle "playchess.com"]
[Source "ChessBase"]
[SourceQuality "1"]
[TimeControl "40/5400+30:1800+30"]

{[%evp 9,114,-58,-10,-22,-23,-42,0,-47,-11,-10,19,16,19,18,19,27,23,41,67,-13,-1,-10,-19,-17,-23,-52,-47,-179,-88,-62,-73,-97,-100,-101,-70,-70,-35,-24,0,0,0,-96,-89,-75,-5,-31,-10,-106,-102,-76,-72,-123,-126,-120,-128,-120,-122,-120,-129,-123,-128,-156,-50,-49,-16,-24,-5,-22,-21,-56,0,0,0,-112,-118,-127,-62,-77,-40,-164,-60,-245,-241,-206,-208,-519,-570,-1776,-1761,-1738,-1725,-1633,-1575,-1400,-1249,-12841,-12842,-12841,-12839,-12839,-12841,-12841,-12841,-12842,-12842,-12843,-12843]} 1. e4 {[%emt 0:00:02]} c5 {[%emt 0:04:44]} 2. Nf3 {[%emt 0:00:05]} Nc6 {[%emt 0:04:46]} 3. c3 {[%emt 0:00:06]} Nf6 {[%emt 0:01:24]} 4. Qe2 {[%emt 0:00:35]} e5 {[%emt 0:02:27]} 5. g3 {[%emt 0:00:21]} Be7 {[%emt 0:00:40]} (5... d5 $15 {might be stronger.} 6. d3 d4) 6. Bg2 {[%emt 0:00:11] B22: Sicilian: 2 c3.} O-O {[%emt 0:00:18]} 7. O-O {[%emt 0:00:09]} d6 {[%emt 0:03:01]} (7... d5 $5 {[%cal Rd5e4]} 8. d3 d4 $15) 8. h3 {[%emt 0:02:43] [#]} (8. Na3 $11 {feels stronger.}) 8... h6 $146 {[%emt 0:01:54]} ({Predecessor:} 8... Be6 9. Rd1 Qc7 10. d4 exd4 11. cxd4 cxd4 12. Nxd4 Nxd4 13. Rxd4 Qxc1+ 14. Rd1 Qc7 {0-1 (37) Zaksaite,S (2261)-Kejzar,P (2072) Chess.com INT 2021}) 9. Rd1 {[%emt 0:00:31]} Qc7 {[%emt 0:02:21]} 10. d4 {[%emt 0:03:34]} cxd4 {[%emt 0:07:34]} 11. cxd4 {[%emt 0:00:05]} exd4 {[%emt 0:03:11]} 12. Na3 {[%emt 0:01:28][%cal Bb1a3,Ba3c2,Bc2d4][%mdl 32]} Qb6 {[%emt 0:06:58]} 13. Nc2 {[%emt 0:14:43]} d5 {[%emt 0:18:04]} 14. e5 {[%emt 0:11:00]} (14. exd5 $14 Nxd5 15. Nfxd4) 14... Ne4 $11 {[%emt 0:02:38][%cal Oe4g3]} 15. Ncxd4 {[%emt 0:02:02]} Bc5 {[%emt 0:02:15][%cal Rc6d4]} 16. Be3 {[%emt 0:00:32]} Re8 {[%emt 0:02:25]} 17. Rac1 {[%emt 0:09:56]} Nxe5 {[%emt 0:06:49]} 18. Rxc5 {[%emt 0:18:07]} Nxf3+ {[%emt 0:09:59]} (18... Nxc5 19. Nxe5 Rxe5 20. Nf3 $15) (18... Qxc5 $19 {and Black stays clearly on top.} 19. Nxe5 Rxe5) 19. Nxf3 $17 {[%emt 0:00:46]} Nxc5 {[%emt 0:01:06]} 20. Qc2 {[%emt 0:17:13] [#]} Rxe3 {[%emt 0:02:41]} 21. fxe3 {[%emt 0:00:59]} Ne4 {[%emt 0:00:49] Hoping for ...Be6.} 22. Rxd5 {[%emt 0:01:23]} Nxg3 {[%emt 0:03:43] And now ...Be6 would win.} ({Much worse is} 22... Qxe3+ 23. Kh2 Bxh3 24. Kxh3 $11) 23. Nd4 {[%emt 0:00:18]} Be6 {[%emt 0:04:13]} 24. Rb5 {[%emt 0:00:42]} Qd6 {[%emt 0:02:06] ...Rc8 is the strong threat.} 25. Bxb7 {[%emt 0:00:38]} (25. Qc5 $1 $11 Ne4 26. Qe5 Qxe5 27. Rxe5) 25... Rb8 {[%emt 0:01:55]} 26. Qc6 {[%emt 0:01:29] [#]} Qe7 {[%emt 0:01:55] Black is more active.} (26... Qd8 $1 $17 {Strongly threatening ...Bd7.} 27. Qf3 Bd7) 27. Qf3 $11 {[%emt 0:07:58]} Qh4 {[%emt 0:02:18]} (27... Qc7 $5 {[%cal Re6c4]} 28. b3 Bd7 $11) 28. Qf4 {[%emt 0:02:48]} (28. Nxe6 $11 {keeps the balance.} fxe6 29. Qg4 Qxg4 30. hxg4) 28... Qxf4 $17 {[%emt 0:00:33]} 29. exf4 {[%emt 0:00:01]} Bc4 {[%emt 0:00:45]} 30. Nc6 {[%emt 0:02:54]} (30. Rb4 $142) 30... Bxb5 {[%emt 0:00:46]} 31. Nxb8 {[%emt 0:00:01][%mdl 4096] Endgame KBN-KBN} Ne2+ {[%emt 0:00:17]} 32. Kh2 {[%emt 0:00:01]} Nxf4 {[%emt 0:00:16]} 33. b3 {[%emt 0:00:03]} Ne6 {[%emt 0:00:42]} 34. a4 {[%emt 0:00:12]} Bd3 {[%emt 0:00:41]} 35. b4 {[%emt 0:01:04]} g5 {[%emt 0:01:02]} (35... Nd8 $17 36. Bd5 Kf8 37. Nd7+ Ke7) 36. Nc6 $15 {[%emt 0:00:21]} a6 {[%emt 0:00:26]} (36... Be4 $5 {[%cal Rg8f8]}) 37. Ne5 {[%emt 0:00:42]} Be2 {[%emt 0:00:27]} 38. Bd5 {[%emt 0:01:18]} Kg7 {[%emt 0:00:27][%cal Of7f6]} 39. Nd7 {[%emt 0:00:29]} Nf4 {[%emt 0:00:26]} (39... Nc7 $15 40. Bb3 Ne6) 40. Bc6 {[%emt 0:00:00]} Ne6 {[%emt 0:00:00]} 41. Nb8 {[%emt 0:22:10]} (41. Bd5 $1 $11 {remains equal.}) 41... Nc7 {[%emt 0:08:03]} 42. Kg3 {[%emt 0:05:37]} f5 {[%emt 0:01:56]} (42... Kf6 $17 43. Bg2 Ke6) 43. Kf2 {[%emt 0:00:08]} Bc4 {[%emt 0:01:44]} 44. Ke3 {[%emt 0:01:27]} ({White has to play} 44. Nd7 $15) 44... Bf1 {[%emt 0:11:31]} (44... f4+ $19 45. Kf3 Kf6) 45. Kd4 $2 {[%emt 0:00:27]} ({Better is} 45. Kf2 $1 $15 Bc4 46. Nd7) 45... Kf6 $19 {[%emt 0:03:07]} ({Wrong is} 45... Bxh3 $2 46. Bb7) 46. Kc5 {[%emt 0:00:50]} Ke7 {[%emt 0:01:49]} ({And not} 46... Bxh3 47. Kd6 g4 48. Kxc7 $11) 47. Kb6 $2 {[%emt 0:02:53]} (47. Bd7 {is a better chance.} f4 48. Bg4) 47... Kd6 {[%emt 0:00:36] Threatens to win with ...Nd5+. Black is clearly winning.} 48. Bb7 {[%emt 0:00:08]} g4 {[%emt 0:03:05]} 49. hxg4 {[%emt 0:00:42]} fxg4 {[%emt 0:00:04][%cal Bf5g4,Bg4g3,Bg3g2][%mdl 32]} 50. Nc6 {[%emt 0:02:52]} Nd5+ {[%emt 0:02:43]} 51. Ka5 {[%emt 0:00:02]} Kc7 {[%emt 0:01:00]} 52. Nd8 {[%emt 0:01:07]} Nxb4 {[%emt 0:00:54]} 53. Ne6+ {[%emt 0:00:12]} Kxb7 {[%emt 0:00:10][%cal Rb4c6]} 54. Kxb4 {[%emt 0:00:39]} g3 {[%emt 0:00:22]} 55. Nf4 {[%emt 0:00:08]} g2 {[%emt 0:00:15]} 56. Nh3 {[%emt 0:00:05]} Kb6 {[%emt 0:00:37]} 57. a5+ {[%emt 0:00:09]} Kc6 {[%emt 0:00:14] Weighted Error Value: White=0.49/Black=0.17 (very precise)} 0-1

[Event "Croatian 1B League 2022"]
[Site "Porec"]
[Date "2022.10.01"]
[Round "8.7"]
[White "Ghersinich, Enrico"]
[Black "Doric, Darko"]
[Result "1/2-1/2"]
[ECO "D36"]
[WhiteElo "2145"]
[BlackElo "2457"]
[Annotator "TA"]
[PlyCount "222"]
[EventDate "2022.09.24"]
[EventType "team-tourn"]
[EventCountry "CRO"]
[SourceTitle "playchess.com"]
[Source "ChessBase"]
[SourceQuality "1"]
[TimeControl "40/5400+30:1800+30"]

{[%evp 24,222,5,15,14,0,0,2,4,-33,-36,-42,-6,-48,0,0,0,0,86,77,141,62,91,53,113,108,120,54,65,61,78,39,53,51,56,54,192,186,231,70,78,0,0,0,0,0,0,0,0,0,-6,-28,-18,-43,0,0,0,-38,-5,-11,-12,-4,0,0,0,-88,0,0,0,0,0,0,6,0,0,0,0,-8,-8,-33,-24,-32,-31,-39,-12,-14,0,0,0,0,0,0,0,0,0,-8,-8,-8,-8,-12,0,-16,-8,-8,-8,-8,-8,-12,0,0,0,0,0,0,0,0,0,0,0,-12,0,0,0,-8,0,0,0,0,0,0,0,0,0,0,0,0,0,0,0,0,0,0,0,0,0,0,0,-129,-129,-129,-129,-129,-129,-129,-129,-129,-129,-129,-129,-129,-129,-129,-129,-129,-129,-129,-8,-8,-8,-8,-8,-12,-12,-12,-12,-12,-12,-12,-12,-12,-8,-24,-24,-4529,-4529,-4529,-32,-4529,-4529,-4529,-4529,-4529,-4529,-4529,-4529,-4529,-4529,-4529,-4529,-4522,-36]} 1. d4 {[%emt 0:00:04]} d5 {[%emt 0:01:51]} 2. c4 {[%emt 0:00:22]} e6 {[%emt 0:00:06]} 3. Nc3 {[%emt 0:00:12]} Nf6 {[%emt 0:00:10]} 4. cxd5 {[%emt 0:00:56]} exd5 {[%emt 0:00:06]} 5. Bg5 {[%emt 0:00:19]} Be7 {[%emt 0:00:20]} 6. e3 {[%emt 0:00:18]} c6 {[%emt 0:00:10]} 7. Bd3 {[%emt 0:00:36]} Nbd7 {[%emt 0:00:08]} 8. Nge2 {[%emt 0:00:59]} O-O {[%emt 0:00:07]} 9. Qc2 {[%emt 0:01:34]} Re8 {[%emt 0:00:05]} 10. O-O {[%emt 0:00:09]} Nf8 {[%emt 0:00:16]} 11. f3 {[%emt 0:01:26]} g6 {[%emt 0:00:06]} 12. Rad1 {[%emt 0:03:41]} Ne6 {[%emt 0:00:40]} 13. Bh4 {[%emt 0:00:41]} b5 {[%emt 0:00:06]} 14. Kh1 {[%emt 0:07:21]} Bb7 {[%emt 0:00:23]} 15. Bf2 {[%emt 0:09:29]} Rc8 {[%emt 0:00:48]} 16. e4 {[%emt 0:05:35]} b4 {[%emt 0:00:31]} 17. Na4 {[%emt 0:00:14]} Qa5 {[%emt 0:00:08]} 18. Rc1 {[%emt 0:14:24]} (18. e5 $5 {[%cal Re5f6]} Nd7 19. f4 $15) 18... dxe4 {[%emt 0:09:24]} (18... Nd7 $15) 19. fxe4 $11 {[%emt 0:00:13]} Ng4 {[%emt 0:00:20]} 20. Bg1 {[%emt 0:05:46]} Bg5 {[%emt 0:03:23]} (20... c5 $1 $11 21. d5 Nf8) 21. Nc5 $1 $16 {[%emt 0:00:12]} Qc7 {[%emt 0:11:39]} (21... Bxc1 22. Nxb7 Qc7 23. Qxc1 $16) (21... Nxc5 $142 22. Qxc5 Qxc5 23. Rxc5 Bd8) 22. h3 {[%emt 0:07:50]} (22. Bc4 $1 $16) 22... Nf6 $1 $14 {[%emt 0:11:03]} (22... Bxc1 $2 23. Nxc1 Nxc5 24. Qxc5 $18) 23. Rcd1 {[%emt 0:09:04]} Qe7 {[%emt 0:01:42]} (23... Nxc5 $14 24. dxc5 Qe7) 24. Nxb7 $16 {[%emt 0:03:31]} Qxb7 {[%emt 0:00:08]} 25. Rf3 {[%emt 0:00:20]} (25. Bc4 $16) 25... c5 $1 $14 {[%emt 0:05:46]} 26. d5 $1 {[%emt 0:01:25]} (26. dxc5 Nxc5 27. Bxc5 Re5 $11) 26... Nf8 {[%emt 0:02:22]} 27. Rdf1 {[%emt 0:06:26]} (27. Bxc5 $2 N8d7 28. Ng3 (28. Rxf6 $2 Bxf6 29. Qb1 Nxc5 $19) 28... Rxc5 $19) 27... N8d7 {[%emt 0:00:24]} 28. b3 {[%emt 0:00:45]} Qb6 {[%emt 0:02:00]} 29. Bh2 {[%emt 0:01:28]} Rcd8 {[%emt 0:05:10]} ({Black should play} 29... Ne5 $14) 30. d6 $1 $18 {[%emt 0:03:51]} Qb7 {[%emt 0:02:06]} 31. e5 $2 {[%emt 0:01:23]} (31. Qc4 $6 Rxe4 32. Bxe4 Qxe4 $16) (31. Qb2 $18) 31... Nxe5 $14 {[%emt 0:00:14]} 32. Bxe5 {[%emt 0:00:08]} ({Better is} 32. Rxf6 $16 {Strongly threatening Bxe5.} Bxf6 33. Rxf6 Nxd3 34. Qxd3) 32... Rxe5 $11 {[%emt 0:00:06]} 33. Rxf6 {[%emt 0:00:08]} Bxf6 {[%emt 0:00:03]} 34. Rxf6 {[%emt 0:00:06]} Kg7 {[%emt 0:00:29]} 35. Rf3 {[%emt 0:02:46]} Rxd6 {[%emt 0:00:21]} 36. Bc4 {[%emt 0:00:12]} f6 {[%emt 0:00:54]} 37. Rd3 {[%emt 0:04:52]} Qe4 {[%emt 0:04:05]} 38. Rd2 {[%emt 0:02:12]} (38. Ng3 Qf4 39. Qb1 Rxd3 40. Qxd3 Re1+ 41. Nf1 a5 42. Qd7+ Kh6 $17) 38... Qxc2 {[%emt 0:06:33]} 39. Rxc2 {[%emt 0:00:06]} f5 {[%emt 0:00:47]} 40. Nf4 {[%emt 0:00:00]} Re3 {[%emt 0:00:00]} 41. Kg1 {[%emt 0:12:18]} g5 {[%emt 0:05:51]} 42. Ne2 $1 {[%emt 0:04:26]} f4 {[%emt 0:01:31]} 43. Kf2 {[%emt 0:00:31]} Kf6 {[%emt 0:01:42]} 44. Bg8 {[%emt 0:10:10] [#]} (44. g3 $11) 44... Kg7 {[%emt 0:03:51]} (44... Re8 $1 $17 {[%cal Re8g8]} 45. Bc4 Red8) 45. Bc4 $11 {[%emt 0:00:25]} h6 {[%emt 0:00:28]} 46. Bb5 {[%emt 0:00:48]} Kf6 {[%emt 0:01:33]} 47. g3 {[%emt 0:02:20]} ({Of course not} 47. Rxc5 Re5 48. Rc6 Rxc6 49. Bxc6 Ra5 $17) 47... Rd5 {[%emt 0:15:04]} 48. Bc6 {[%emt 0:01:56]} Rde5 {[%emt 0:00:23]} 49. gxf4 {[%emt 0:00:07]} gxf4 {[%emt 0:00:11]} 50. Nxf4 {[%emt 0:00:14]} Rc3 {[%emt 0:01:06]} 51. Rxc3 {[%emt 0:03:46]} (51. Be4 $5) 51... bxc3 {[%emt 0:00:14]} 52. Ne2 {[%emt 0:00:03]} ({Wrong is} 52. Nd5+ $2 {[#]} Rxd5 $1 {[%mdl 512]} 53. Bxd5 c2 $19) 52... c2 {[%emt 0:00:34]} 53. Nc1 {[%emt 0:00:04]} Kg5 {[%emt 0:01:09]} (53... Rh5 $5 54. Bg2 $8 (54. Be4 $2 Rxh3 55. Ne2 Rh2+ 56. Bg2 Rh4 $19) 54... Rf5+ 55. Ke2 Rf4 $11) 54. Bb5 $1 {[%emt 0:01:41]} Kh4 {[%emt 0:04:50]} 55. Bd3 $1 {[%emt 0:00:05]} Rd5 {[%emt 0:01:19]} 56. Ke3 {[%emt 0:00:16]} Kxh3 {[%emt 0:00:07]} 57. Bxc2 {[%emt 0:00:15]} Kg3 {[%emt 0:02:32]} 58. Be4 {[%emt 0:00:37]} Rd8 {[%emt 0:00:54]} 59. Nd3 {[%emt 0:00:31]} h5 {[%emt 0:00:17]} 60. Nxc5 {[%emt 0:00:44]} h4 {[%emt 0:01:27]} 61. Ne6 {[%emt 0:02:45]} Rd1 {[%emt 0:01:03]} 62. Nf4 {[%emt 0:02:21]} Rf1 {[%emt 0:01:01]} 63. Ne2+ {[%emt 0:00:54]} Kg4 {[%emt 0:00:05]} 64. Bc6 {[%emt 0:00:31]} Rf7 {[%emt 0:01:33]} 65. Ng1 {[%emt 0:01:24]} Re7+ {[%emt 0:02:24]} 66. Kf2 {[%emt 0:01:06]} Rc7 {[%emt 0:01:19]} 67. Be4 {[%emt 0:00:07]} Kf4 {[%emt 0:00:54]} 68. Bd3 {[%emt 0:00:43]} Rc8 {[%emt 0:00:12]} 69. Ne2+ {[%emt 0:00:05]} Kg4 {[%emt 0:00:17]} 70. Bc4 {[%emt 0:00:33]} Rf8+ {[%emt 0:00:12]} 71. Ke3 {[%emt 0:00:32]} Re8+ {[%emt 0:00:13]} 72. Kf2 {[%emt 0:00:04]} h3 {[%emt 0:00:07]} 73. Bd5 {[%emt 0:00:33]} Rf8+ {[%emt 0:01:30]} 74. Kg1 {[%emt 0:00:40]} Rd8 {[%emt 0:01:03]} 75. Nc3 {[%emt 0:00:22]} Kg3 {[%emt 0:01:02]} 76. Ne2+ {[%emt 0:00:04]} Kh4 {[%emt 0:00:29]} 77. Nc3 {[%emt 0:00:21]} Rd7 {[%emt 0:01:27]} 78. a4 {[%emt 0:00:42]} Rc7 {[%emt 0:00:12]} 79. Bc4 {[%emt 0:00:20]} Rg7+ {[%emt 0:00:22]} 80. Kh1 {[%emt 0:01:00]} a5 {[%emt 0:00:57]} 81. Ne4 {[%emt 0:01:00]} Rg2 {[%emt 0:00:45]} 82. Nc3 {[%emt 0:01:32]} Kg3 {[%emt 0:04:00]} 83. Ne2+ {[%emt 0:00:05]} Kh4 {[%emt 0:02:43]} 84. Nf4 {[%emt 0:00:28]} Rc2 {[%emt 0:00:30]} 85. Nxh3 {[%emt 0:01:39]} (85. Ne2 $11) 85... Kxh3 $17 {[%emt 0:00:12]} 86. Kg1 {[%emt 0:00:04]} Kg3 {[%emt 0:00:13]} 87. Kf1 {[%emt 0:00:04]} Kf3 {[%emt 0:00:09]} 88. Ke1 {[%emt 0:00:11]} Ke3 {[%emt 0:00:08]} 89. Kd1 {[%emt 0:00:20]} Rh2 {[%emt 0:00:15]} 90. Kc1 {[%emt 0:00:21]} Kd4 {[%emt 0:00:07]} 91. Kb1 {[%emt 0:00:33]} Kc3 {[%emt 0:00:03]} 92. Ka1 {[%emt 0:00:22]} Kc2 {[%emt 0:00:38]} 93. Ka2 {[%emt 0:00:25]} Kc1+ {[%emt 0:00:16]} 94. Ka3 {[%emt 0:00:05]} Kb1 {[%emt 0:03:54]} (94... Rh4 $17 95. Bd5 Kb1) 95. b4 $1 $11 {[%emt 0:00:18]} Kc2 {[%emt 0:03:58]} 96. bxa5 {[%emt 0:00:28]} Kc3 {[%emt 0:00:05]} 97. Bd5 {[%emt 0:01:04]} Rh5 {[%emt 0:00:09]} 98. Be6 {[%emt 0:00:43]} Rxa5 {[%emt 0:00:17]} 99. Bd7 {[%emt 0:00:36]} Rd5 {[%emt 0:00:21]} 100. Be6 {[%emt 0:00:14]} Re5 {[%emt 0:00:15]} 101. Bf7 {[%emt 0:00:16]} Re1 {[%emt 0:00:06]} 102. Ka2 {[%emt 0:00:28]} Kb4 {[%emt 0:00:02]} 103. a5 $2 {[%emt 0:00:14][%mdl 8192]} (103. Bh5 $11) 103... Re2+ $19 {[%emt 0:00:07]} 104. Ka1 {[%emt 0:00:03]} Kxa5 $2 {[%emt 0:00:06]} (104... Kc3 $19 105. a6 Re5) 105. Bg8 $2 {[%emt 0:00:05][%mdl 8192]} (105. Kb1 $15) 105... Kb4 $19 {[%emt 0:00:07]} 106. Bf7 {[%emt 0:00:23]} Kc3 {[%emt 0:00:03]} 107. Bg8 {[%emt 0:00:10]} Re8 {[%emt 0:00:47]} 108. Bf7 {[%emt 0:00:46]} Ra8+ {[%emt 0:00:05]} 109. Kb1 {[%emt 0:00:14]} Ra7 {[%emt 0:00:26]} 110. Bd5 {[%emt 0:00:22]} Re7 {[%emt 0:00:25]} 111. Bg8 {[%emt 0:00:08]} Re1+ $2 {[%emt 0:01:25]} (111... Rb7+ $19 112. Ka2 Rb2+ 113. Ka1 Rf2) 1/2-1/2

[Event "Croatian 1B League 2022"]
[Site "Porec"]
[Date "2022.10.01"]
[Round "8.8"]
[White "Maksimovic, Bojan"]
[Black "Grbac, Ivica"]
[Result "1-0"]
[ECO "A43"]
[WhiteElo "2468"]
[BlackElo "2114"]
[Annotator "TA"]
[PlyCount "57"]
[EventDate "2022.09.24"]
[EventType "team-tourn"]
[EventCountry "CRO"]
[SourceTitle "playchess.com"]
[Source "ChessBase"]
[SourceQuality "1"]
[TimeControl "40/5400+30:1800+30"]

{[%evp 20,57,43,47,40,41,52,49,51,10,106,128,126,117,290,304,289,254,267,225,269,225,304,299,598,593,592,574,577,567,568,440,492,529,516,503,542,532,552,543]} 1. d4 {[%emt 0:00:04]} c5 {[%emt 0:00:25]} 2. d5 {[%emt 0:00:21]} Nf6 {[%emt 0:00:22]} 3. Nc3 {[%emt 0:00:34]} d6 {[%emt 0:01:33]} 4. e4 {[%emt 0:00:35]} g6 {[%emt 0:04:17]} 5. Be2 {[%emt 0:05:16]} Bg7 {[%emt 0:02:54]} 6. Nf3 {[%emt 0:01:42][%cal Bg1f3,Bf3d2,Bd2c4,Bc4d6][%mdl 32]} O-O {[%emt 0:04:28]} 7. O-O {[%emt 0:00:14]} a6 {[%emt 0:01:03]} 8. a4 {[%emt 0:05:29][%cal Ba2a4,Ba4a5][%mdl 32]} Bg4 {[%emt 0:13:08]} 9. a5 {[%emt 0:00:39]} Nbd7 {[%emt 0:02:04]} 10. Nd2 {[%emt 0:05:11]} Bxe2 {[%emt 0:03:35]} 11. Qxe2 {[%emt 0:00:11]} Qc7 {[%emt 0:00:32] A43: Schmid Benoni.} 12. Nc4 {[%emt 0:01:15]} b5 {[%emt 0:04:22]} 13. axb6 $1 {[%emt 0:00:18]} Nxb6 {[%emt 0:00:14] White is slightly better.} 14. Bd2 {[%emt 0:08:16] [#]} e6 $146 {[%emt 0:05:43]} (14... Nxc4 $11 {remains equal.} 15. Qxc4 Rfb8) ({Predecessor:} 14... Nxc4 15. Qxc4 Rfb8 16. Na4 Qb7 17. Qe2 Nd7 18. Ra3 Qb5 19. c4 Qb7 20. Ba5 Bxb2 {0-1 (40) Del Rey,D (2270)-Malbran,G (2330) Buenos Aires 1992}) 15. dxe6 $16 {[%emt 0:02:47] White is more active.} fxe6 {[%emt 0:00:32]} 16. Nxd6 {[%emt 0:03:22]} Nh5 $2 {[%emt 0:04:48] [#] This move loses the game for Black.} (16... Qxd6 $16 {keeps fighting.} 17. e5 Qc6) 17. e5 $18 {[%emt 0:01:58]} Nf4 {[%emt 0:03:21]} 18. Qe4 {[%emt 0:03:31]} Nfd5 {[%emt 0:11:50]} 19. f4 {[%emt 0:00:49]} Kh8 {[%emt 0:02:13]} 20. Na4 {[%emt 0:03:05][%cal Bc3a4,Ba4c5,Bc5a6,Ba6b4,Bb4d3][%mdl 32]} Rab8 {[%emt 0:08:37]} 21. Ba5 {[%emt 0:04:24] Black must now prevent c4.} Qd7 $2 {[%emt 0:00:58]} (21... Qa7 22. Nxb6 (22. Nxc5 Nd7 $11) 22... Nxb6 23. Bxb6 Qxb6) 22. Bxb6 {[%emt 0:01:27] White is clearly winning.} Nxb6 {[%emt 0:00:24]} 23. Nxc5 {[%emt 0:00:28] Pair of Knights!} Qe7 {[%emt 0:03:23]} 24. Nxa6 {[%emt 0:02:11]} Rbd8 {[%emt 0:01:29]} 25. Nb4 {[%emt 0:00:40] [#] And now Nc6 would win.} Rxd6 {[%emt 0:01:10]} 26. exd6 {[%emt 0:00:08]} Qxd6 {[%emt 0:00:05]} 27. Nd3 {[%emt 0:00:12]} Nd5 {[%emt 0:01:50]} 28. Rae1 {[%emt 0:00:50]} Nc7 {[%emt 0:02:49]} 29. h3 {[%emt 0:00:29] Weighted Error Value: White=0.20 (precise) /Black=0.61} 1-0